bitfinex-derivatives/quotes_BNBF0:USTF0_20250331
["timestamp","ask_amount","ask_price","bid_price","bid_amount"]
[1743399668785,0.82616831,603.56,602.86,0.33175198]
[1743399668989,3.73914064,603.56,602.86,0.33175198]
[1743399669189,3.60684787,603.55,602.86,0.33175198]
[1743399669391,5.75488548,603.55,602.86,0.33175198]
[1743399669690,3.26841158,603.54,602.86,0.33175198]
[1743399669990,8.66785781,603.54,602.86,0.33175198]
[1743399670289,5.75512831,603.53,602.86,0.33175198]
[1743399670590,3.73914064,603.52,602.86,0.33175198]
[1743399670884,1.38724918,603.51,602.86,0.33175198]
[1743399671091,2.21341749,603.51,602.86,0.33175198]
[1743399671390,2.21394196,603.51,602.86,0.33175198]
[1743399671591,0.28855362,603.58,602.86,0.33175198]
[1743399671890,5.75650928,603.7,602.86,0.33175198]
[1743399672090,0.28853568,603.58,602.86,0.33175198]
[1743399672288,1.12037397,603.57,602.86,0.33175198]
[1743399672685,1.12037397,603.56,602.86,0.33175198]
[1743399673190,1.12037397,603.55,602.86,0.33175198]
[1743399673391,1.40893477,603.55,602.86,0.33175198]
[1743399673689,1.12037397,603.54,602.86,0.33175198]
[1743399674490,1.12037397,603.53,602.86,0.33175198]
[1743399674888,5.75650928,603.57,602.86,0.33175198]
[1743399674889,1.12037397,603.54,602.86,0.33175198]
[1743399675287,4.65642091,603.54,602.86,0.33175198]
[1743399675487,6.87688325,603.53,602.86,0.33175198]
[1743399675689,5.75650928,603.52,602.86,0.33175198]
[1743399675890,5.75650928,603.51,602.86,0.33175198]
[1743399676091,4.4344043,603.5,602.86,0.33175198]
[1743399676285,0.82616831,603.49,602.86,0.33175198]
[1743399676791,3.73914064,603.49,602.86,0.33175198]
[1743399677093,1.38777365,603.48,602.86,0.33175198]
[1743399677292,2.21394196,603.48,602.86,0.33175198]
[1743399677990,2.21394196,603.53,602.86,0.33175198]
[1743399678390,0.28868288,603.55,602.86,0.33175198]
[1743399679986,1.12037397,603.54,602.86,0.33175198]
[1743399680388,0.28868288,603.55,602.86,0.33175198]
[1743399682386,6.04352418,603.55,602.86,0.33175198]
[1743399682592,2.14766304,603.54,602.86,0.33175198]
[1743399683187,5.06063537,603.54,602.86,0.33175198]
[1743399683386,3.60555152,603.53,602.86,0.33175198]
[1743399683593,5.75321456,603.53,602.86,0.33175198]
[1743399683794,3.26803701,603.52,602.86,0.33175198]
[1743399683993,7.16216608,603.52,602.86,0.33175198]
[1743399684193,5.75321456,603.51,602.86,0.33175198]
[1743399684393,2.14766304,603.5,602.86,0.33175198]
[1743399684596,0.82616831,603.5,602.86,0.33175198]
[1743399684796,3.73914064,603.5,602.86,0.33175198]
[1743399684997,3.60555152,603.49,602.86,0.33175198]
[1743399685189,5.75321456,603.49,602.86,0.33175198]
[1743399685488,5.06063537,603.48,602.86,0.33175198]
[1743399685694,3.60555152,603.47,602.86,0.33175198]
[1743399685895,5.75321456,603.47,602.86,0.33175198]
[1743399686098,2.14766304,603.46,602.86,0.33175198]
[1743399686288,5.06063537,603.46,602.86,0.33175198]
[1743399686597,4.43171983,603.45,602.6,0.28860029]
[1743399686793,4.43171983,603.45,601.74,2.52044129]
[1743399686990,2.91297233,603.44,601.76,0.33235841]
[1743399687197,7.34469216,603.44,601.77,0.28573664]
[1743399687390,3.60555152,603.43,601.79,0.33234184]
[1743399687691,7.34469216,603.43,601.8,0.28573664]
[1743399687892,4.43171983,603.42,601.82,0.33232527]
[1743399688092,0.82616831,603.41,601.83,0.28573664]
[1743399688396,2.91297233,603.41,601.85,0.33230871]
[1743399688598,2.21291889,603.41,601.86,0.28573664]
[1743399688793,0.2887236,603.43,601.88,0.33229215]
[1743399688997,0.2887236,603.43,601.89,0.28573664]
[1743399689200,0.2887236,603.43,601.91,0.33227558]
[1743399689399,0.2887236,603.43,601.92,0.28573664]
[1743399689600,0.2887236,603.43,601.94,0.33225902]
[1743399689902,1.12037397,603.59,601.95,0.28573664]
[1743399690094,0.30472098,603.58,601.97,0.33224247]
[1743399690296,0.28869127,603.42,601.98,0.28573664]
[1743399690497,1.12037397,603.57,602.0,0.33222591]
[1743399690698,1.12037397,603.56,602.0,0.33222591]
[1743399690898,0.30472742,603.55,602.01,0.2857628]
[1743399691095,4.9584502,603.55,602.03,0.33220935]
[1743399691300,0.30472742,603.54,602.04,0.2857628]
[1743399691500,8.96859518,603.54,602.06,0.3321928]
[1743399691700,6.05562285,603.53,602.07,0.2857628]
[1743399691902,5.36429798,603.52,602.09,0.33217625]
[1743399692101,6.05563058,603.51,602.1,0.28578016]
[1743399692295,6.05563058,603.51,601.98,2.52044129]
[1743399692296,2.45133338,603.5,602.12,0.3321597]
[1743399692502,0.30473515,603.49,602.13,0.28578016]
[1743399692803,0.30473515,603.49,602.15,0.33214315]
[1743399693000,0.30473515,603.49,602.16,0.28578016]
[1743399693197,1.13090346,603.49,602.17,0.28578016]
[1743399693402,0.59341564,603.48,602.19,0.33212109]
[1743399693603,0.30473515,603.47,602.2,0.28578016]
[1743399693904,0.30473515,603.47,602.22,0.33210454]
[1743399694104,2.45133338,603.47,602.23,0.28578016]
[1743399694304,0.30473515,603.46,602.25,0.332088]
[1743399694604,2.45133338,603.46,602.26,0.28578016]
[1743399694801,0.30473515,603.45,602.28,0.33207146]
[1743399694996,0.30473515,603.45,602.29,0.28578016]
[1743399695198,1.13090346,603.45,602.31,0.33205492]
[1743399695496,0.30473515,603.44,602.32,0.28578016]
[1743399695697,7.27551215,603.44,602.33,0.33204389]
[1743399695897,5.74750331,603.43,602.34,0.28578016]
[1743399696097,2.14659823,603.42,602.35,0.33203287]
[1743399696301,5.74750331,603.42,602.36,0.28578016]
[1743399696603,2.14513801,603.41,602.37,0.33202184]
[1743399696804,5.74484761,603.41,602.37,0.33202184]
[1743399697006,2.14513801,603.4,602.37,0.33202184]
[1743399697203,5.74484761,603.4,602.37,0.33202184]
[1743399697507,5.05811034,603.39,602.37,0.33202184]
[1743399697700,3.59821475,603.38,602.37,0.33202184]
[1743399697898,1.94654228,603.37,602.37,0.33202184]
[1743399698099,5.54475703,603.37,602.37,0.33202184]
[1743399698403,2.14513801,603.36,602.37,0.33202184]
[1743399698602,3.52906676,603.36,602.37,0.33202184]
[1743399698904,6.44203909,603.36,602.37,0.33202184]
[1743399699098,2.21009706,603.35,602.37,0.33202184]
[1743399699702,2.21009706,603.64,602.37,0.33202184]
[1743399700000,2.51490593,603.63,602.37,0.33202184]
[1743399700305,2.80911159,603.62,602.37,0.33202184]
[1743399700505,1.68873762,603.61,602.37,0.33202184]
[1743399700705,1.68873762,603.6,602.37,0.33202184]
[1743399700908,1.68873762,603.59,602.37,0.33202184]
[1743399701106,0.30480887,603.58,602.37,0.33202184]
[1743399701303,0.30480887,603.59,602.37,0.33202184]
[1743399701502,1.12037397,603.58,602.37,0.33202184]
[1743399701702,0.30480887,603.57,602.37,0.33202184]
[1743399701899,7.16576085,603.57,602.37,0.33202184]
[1743399702102,5.74057801,603.56,602.37,0.33202184]
[1743399702305,5.74057801,603.55,602.37,0.33202184]
[1743399702501,5.74057801,603.54,602.37,0.33202184]
[1743399702706,2.14384653,603.53,602.37,0.33202184]
[1743399703005,0.82291837,603.53,602.37,0.33202184]
[1743399703206,1.40920421,603.52,602.37,0.33202184]
[1743399703607,7.14552345,603.52,602.37,0.33202184]
[1743399703805,6.041145,603.51,602.37,0.33202184]
[1743399704003,2.44441352,603.5,602.37,0.33202184]
[1743399704203,0.30482576,603.49,602.37,0.33202184]
[1743399704902,6.041145,603.49,602.37,0.33202184]
[1743399705105,2.44441352,603.48,602.37,0.33202184]
[1743399705303,0.30482576,603.47,602.37,0.33202184]
[1743399705502,4.23701188,603.47,602.37,0.33202184]
[1743399705701,4.23701188,603.47,596.87,3.55776477]
[1743399705702,3.90155724,603.46,601.26,2.52044129]
[1743399706008,5.35738585,603.45,601.27,0.2858954]
[1743399706307,6.041145,603.44,601.28,0.2858954]
[1743399706508,2.44441352,603.43,601.29,0.2858954]
[1743399706709,0.30482576,603.42,601.3,0.2858954]
[1743399706902,0.30482576,603.42,601.31,0.2858954]
[1743399707106,0.30484291,603.41,601.32,0.28589616]
[1743399707302,0.30484291,603.41,601.33,0.28589616]
[1743399707507,2.44443067,603.41,601.34,0.28589616]
[1743399707809,0.30484291,603.4,601.35,0.28589616]
[1743399708004,5.05256009,603.41,601.36,0.28589616]
[1743399708210,3.59673148,603.4,601.37,0.28589616]
[1743399708403,0.30483947,603.39,601.38,0.28589616]
[1743399708604,2.44442723,603.39,601.39,0.28589616]
[1743399708803,5.05256009,603.39,601.4,0.28589616]
[1743399709008,3.59673148,603.38,601.41,0.28589616]
[1743399709205,5.73631924,603.38,601.42,0.28589616]
[1743399709402,2.13958776,603.37,601.43,0.28589616]
[1743399709607,1.94329234,603.37,601.44,0.28589616]
[1743399709806,6.85669321,603.37,601.45,0.28589616]
[1743399710002,5.73631924,603.36,601.46,0.28589616]
[1743399710209,5.73631924,603.35,601.47,0.28589616]
[1743399710409,2.13958776,603.34,601.48,0.28589616]
[1743399710708,0.82291837,603.34,601.49,0.28589616]
[1743399710910,3.7358907,603.34,601.49,0.28589616]
[1743399711209,3.59673148,603.33,601.5,0.28589616]
[1743399711407,5.73631924,603.33,601.51,0.28589616]
[1743399711608,2.13958776,603.32,601.52,0.28589616]
[1743399711905,3.7358907,603.32,601.53,0.28589616]
[1743399712104,3.88559049,603.31,601.54,0.28589616]
[1743399712408,3.7358907,603.3,601.37,0.28885901]
[1743399712609,3.59673148,603.29,601.38,0.28591711]
[1743399712807,0.82291837,603.28,601.39,0.28591711]
[1743399713007,1.94329234,603.28,601.4,0.28591711]
[1743399713202,3.32722109,603.28,601.41,0.28591711]
[1743399713405,3.32722109,603.28,601.42,0.28591711]
[1743399713604,3.32722109,603.28,601.43,0.28591711]
[1743399713807,2.20684712,603.28,601.44,0.28591711]
[1743399714005,5.72826265,603.55,601.45,0.28591711]
[1743399714207,0.2888662,603.27,601.46,0.28591711]
[1743399714410,5.72826265,603.53,601.47,0.28592061]
[1743399714709,6.03311048,603.52,601.48,0.28592061]
[1743399714910,2.44208057,603.51,601.49,0.28592061]
[1743399715209,1.4252218,603.5,601.5,0.28592061]
[1743399715409,1.4252218,603.5,601.39,0.2888662]
[1743399715410,0.30484783,603.49,601.51,0.28592061]
[1743399715709,0.30484783,603.49,601.52,0.28592061]
[1743399715710,0.59368766,603.49,601.52,0.28592061]
[1743399715910,0.30484783,603.48,601.53,0.28592061]
[1743399716210,2.44208057,603.48,601.54,0.28592061]
[1743399716410,0.30484783,603.47,601.55,0.28592061]
[1743399716610,1.1277662,603.47,601.56,0.28592061]
[1743399716910,0.30484783,603.46,601.57,0.28592061]
[1743399717110,2.44208057,603.46,601.58,0.28592061]
[1743399717311,0.30484783,603.45,601.59,0.28592061]
[1743399717606,0.30484783,603.45,601.6,0.28592061]
[1743399717809,1.4252218,603.45,601.23,0.28592061]
[1743399718009,0.30484783,603.44,601.24,0.28592061]
[1743399718210,0.59370804,603.44,601.52,0.28886021]
[1743399718413,0.30484783,603.43,601.53,0.28592061]
[1743399718610,2.44208057,603.43,601.54,0.28592061]
[1743399718805,0.30484783,603.42,601.55,0.28592061]
[1743399719011,1.1277662,603.42,601.56,0.28592061]
[1743399719212,0.30484783,603.41,601.57,0.28592061]
[1743399719410,2.44208057,603.41,601.58,0.28592061]
[1743399719609,0.30484783,603.4,601.59,0.28592061]
[1743399719808,1.1277662,603.4,601.6,0.28592061]
[1743399720007,6.03311048,603.4,601.6,0.28592061]
[1743399720203,2.44208057,603.39,601.61,0.28592061]
[1743399720406,0.30484783,603.38,601.62,0.28592061]
[1743399720608,1.1277662,603.38,601.63,0.28592061]
[1743399720809,0.30484783,603.37,601.64,0.28592061]
[1743399721012,2.44208057,603.37,601.65,0.28592061]
[1743399721207,2.44208057,603.37,601.66,0.28592061]
[1743399721208,0.30484783,603.36,601.66,0.28592061]
[1743399721405,0.30484783,603.36,601.67,0.28592061]
[1743399721605,0.30484783,603.36,601.68,0.28592061]
[1743399721806,0.30484783,603.36,601.69,0.28592061]
[1743399722012,1.292,603.35,601.7,0.28592061]
[1743399722212,0.30484783,603.34,601.71,0.28592061]
[1743399722414,0.30484783,603.34,601.72,0.28592061]
[1743399722613,6.03311048,603.34,601.73,0.28592061]
[1743399722808,5.3550529,603.33,601.74,0.28592061]
[1743399723113,6.03311048,603.32,601.75,0.28592061]
[1743399723313,6.03311048,603.32,601.45,2.52044129]
[1743399723314,2.44208057,603.31,601.76,0.28592061]
[1743399723612,0.30484783,603.3,601.77,0.28592061]
[1743399723911,1.1277662,603.3,601.78,0.28592061]
[1743399724107,0.30484783,603.29,601.79,0.28592061]
[1743399724314,0.30484783,603.29,601.65,0.28883144]
[1743399724315,4.71879611,603.29,601.8,0.28592061]
[1743399724615,0.82291837,603.28,601.65,0.28883144]
[1743399724815,0.30485205,603.27,601.66,0.28593002]
[1743399725011,1.12777042,603.27,601.67,0.28593002]
[1743399725212,0.30485205,603.26,601.68,0.28593002]
[1743399725411,0.30485205,603.26,601.69,0.28593002]
[1743399725614,0.30485205,603.26,601.7,0.28593002]
[1743399725814,0.30485205,603.26,601.71,0.28593002]
[1743399726013,0.30485205,603.26,601.72,0.28593002]
[1743399726215,2.44130946,603.32,601.73,0.28593002]
[1743399726416,2.13645741,603.32,601.55,2.52044129]
[1743399726618,0.30484937,603.31,601.56,0.28592387]
[1743399726917,0.30484937,603.31,601.57,0.28592387]
[1743399727121,0.28881825,603.3,601.58,0.28592387]
[1743399727413,0.30484937,603.29,601.59,0.28592387]
[1743399727617,0.30484937,603.29,601.6,0.28592387]
[1743399727816,0.30484937,603.29,601.61,0.28592387]
[1743399728018,1.12656121,603.29,601.7,2.52044129]
[1743399728218,0.30484937,603.28,601.71,0.28592387]
[1743399728418,7.6272403,603.28,601.72,0.28592387]
[1743399728618,2.20159566,603.27,601.7,2.52044129]
[1743399728821,2.20230357,603.27,601.73,0.2858673]
[1743399729017,2.20230357,603.27,601.74,0.2858673]
[1743399729214,2.20230357,603.27,601.71,0.2858673]
[1743399729414,0.28881825,603.3,601.72,0.2858673]
[1743399729620,0.28881825,603.3,601.71,0.2858673]
[1743399729821,0.28881825,603.3,601.72,0.2858673]
[1743399730120,0.28881825,603.3,601.73,0.2858673]
[1743399730315,0.28881825,603.3,601.58,0.2858673]
[1743399730619,0.28881825,603.3,601.59,0.2858673]
[1743399730820,0.28881825,603.3,601.6,0.2858673]
[1743399731319,0.28881825,603.3,601.61,0.2858673]
[1743399731615,0.28881825,603.3,601.62,0.2858673]
[1743399731814,0.28881825,603.3,601.63,0.2858673]
[1743399732018,1.292,603.35,601.64,0.2858673]
[1743399732212,0.28880147,603.29,601.65,0.2858673]
[1743399732417,0.28880147,603.29,601.6,0.2858673]
[1743399732618,0.28880147,603.29,601.61,0.2858673]
[1743399732819,0.28880147,603.29,601.62,0.2858673]
[1743399733020,0.28880147,603.29,601.63,0.2858673]
[1743399733215,0.28880147,603.29,601.64,0.2858673]
[1743399733420,0.30483056,603.28,601.65,0.2858673]
[1743399733923,0.30483056,603.28,601.66,0.2858673]
[1743399734122,0.30483056,603.28,601.83,2.52044129]
[1743399734315,0.30483056,603.28,601.84,0.2858673]
[1743399734518,0.30483056,603.28,601.85,0.2858673]
[1743399734713,0.30483056,603.28,601.87,0.33229767]
[1743399734914,0.30483056,603.28,601.88,0.2858673]
[1743399735113,0.30483056,603.34,601.9,0.3322811]
[1743399735415,0.2887847,603.27,601.91,0.2858673]
[1743399735614,0.2887847,603.27,601.83,2.52044129]
[1743399735615,0.30483056,603.26,601.93,0.33226454]
[1743399735816,0.30483056,603.26,601.94,0.2858673]
[1743399736016,0.30483056,603.26,601.96,0.33224798]
[1743399736215,0.30483056,603.26,601.97,0.2858673]
[1743399736416,0.30483056,603.26,601.99,0.33223143]
[1743399736616,0.30483056,603.26,602.0,0.2858673]
[1743399736820,0.2887847,603.27,602.02,0.33221487]
[1743399737314,0.2887847,603.27,602.03,0.2858673]
[1743399737923,1.292,603.35,602.03,0.2858673]
[1743399738324,4.81198054,603.35,602.03,0.2858673]
[1743399738524,3.59305381,603.34,602.05,0.33219832]
[1743399738722,6.43295287,603.34,602.06,0.2858673]
[1743399738928,2.13803677,603.33,602.08,0.33218176]
[1743399739126,6.01984892,603.33,602.08,0.33218176]
[1743399739327,2.13803677,603.32,602.08,0.33218176]
[1743399739532,8.64406291,603.32,602.09,0.28611881]
[1743399739730,5.73109058,603.31,602.11,0.33216521]
[1743399739930,2.13803677,603.3,602.12,0.28611881]
[1743399740130,5.0510091,603.3,602.13,0.33215418]
[1743399740430,5.73109058,603.29,602.14,0.28611881]
[1743399740624,2.13803677,603.28,602.15,0.33214315]
[1743399740827,3.73529416,603.28,602.16,0.28611881]
[1743399741026,3.59305381,603.27,602.17,0.33213212]
[1743399741228,1.9426958,603.26,602.17,0.33213212]
[1743399741530,5.53574961,603.26,602.18,0.28611881]
[1743399741731,0.82232183,603.25,602.19,0.33212109]
[1743399741930,2.2042656,603.25,602.2,0.28611881]
[1743399742131,4.41842924,603.25,602.21,0.33211006]
[1743399742331,2.2042656,603.24,602.22,0.28611881]
[1743399742536,0.28875235,603.27,602.23,0.33209903]
[1743399743828,5.73693326,603.31,602.23,0.33209903]
[1743399743829,5.05380696,603.3,602.23,0.33209903]
[1743399744032,3.59609863,603.29,602.23,0.33209903]
[1743399744334,5.73693326,603.29,602.23,0.33209903]
[1743399744529,3.2612086,603.28,602.23,0.33209903]
[1743399744729,6.85730723,603.28,602.23,0.33209903]
[1743399744926,5.73693326,603.27,602.24,0.28612497]
[1743399745133,2.14416029,603.26,602.25,0.332088]
[1743399745432,5.05713262,603.26,602.25,0.332088]
[1743399745730,3.60065233,603.25,602.25,0.332088]
[1743399745930,5.74481262,603.25,602.25,0.332088]
[1743399746130,2.14416029,603.24,602.25,0.332088]
[1743399746330,3.73764936,603.24,602.25,0.332088]
[1743399746530,3.60065233,603.23,602.25,0.332088]
[1743399746730,5.74481262,603.23,602.25,0.332088]
[1743399746930,2.14416029,603.22,602.25,0.332088]
[1743399747130,3.73764936,603.22,602.25,0.332088]
[1743399747333,3.60065233,603.21,602.25,0.332088]
[1743399747542,5.74481262,603.21,602.25,0.332088]
[1743399747743,0.82467703,603.2,602.25,0.332088]
[1743399747943,5.74531468,603.21,602.25,0.332088]
[1743399748137,2.23388843,603.2,602.25,0.332088]
[1743399748443,4.02648679,603.2,602.25,0.332088]
[1743399748745,4.42532936,603.19,602.25,0.332088]
[1743399748942,0.82467703,603.18,602.25,0.332088]
[1743399749143,3.73764936,603.18,602.25,0.332088]
[1743399749343,1.38486628,603.17,602.25,0.332088]
[1743399749543,2.21021114,603.17,602.25,0.332088]
[1743399749744,2.21021114,603.17,602.26,0.28597389]
[1743399749945,2.21021114,603.17,602.27,0.33207697]
[1743399750145,6.86870605,603.33,602.27,0.33207697]
[1743399750339,5.74833208,603.32,602.27,0.33207697]
[1743399750543,5.74833208,603.31,602.28,0.28596489]
[1743399750746,5.74833208,603.3,602.29,0.33206594]
[1743399751045,5.05885903,603.29,602.3,0.28596489]
[1743399751243,3.90728029,603.28,602.31,0.33205492]
[1743399751439,2.45072161,603.27,602.32,0.28596489]
[1743399751643,0.30483491,603.26,602.32,0.28596489]
[1743399752142,0.82534486,603.26,602.32,0.28596489]
[1743399752347,5.74833208,603.26,602.32,0.28596489]
[1743399752646,2.45072215,603.25,602.32,0.28596489]
[1743399752846,0.30483545,603.24,602.32,0.28596489]
[1743399753041,1.13018031,603.24,602.32,0.28596489]
[1743399753240,0.30483545,603.23,602.32,0.28596489]
[1743399753442,6.05316753,603.23,602.32,0.28596489]
[1743399753644,5.36369448,603.22,602.32,0.28596489]
[1743399753942,6.05545543,603.21,602.32,0.28596489]
[1743399754146,2.1481746,603.2,602.32,0.28596489]
[1743399754347,5.06114693,603.2,602.32,0.28596489]
[1743399754549,3.60244538,603.19,602.31,0.33205492]
[1743399754747,5.75061998,603.19,602.31,0.33205492]
[1743399754945,3.26854857,603.18,602.31,0.33205492]
[1743399755146,6.87099395,603.18,602.31,0.33205492]
[1743399755349,5.75797321,603.17,602.32,0.2859834]
[1743399755648,8.67094554,603.16,602.32,0.2859834]
[1743399755948,5.75797321,603.15,602.32,0.2859834]
[1743399756143,2.1481746,603.14,602.33,0.28598857]
[1743399756447,5.75797321,603.14,602.34,0.28598857]
[1743399756647,5.75797321,603.14,602.32,0.28598857]
[1743399756648,2.1481746,603.13,602.32,0.28598857]
[1743399756846,3.73919333,603.13,602.31,0.33205492]
[1743399757043,5.06114693,603.13,602.32,0.28598236]
[1743399757247,5.75921411,603.12,602.32,0.28598236]
[1743399757444,4.43726051,603.11,602.32,0.28598236]
[1743399757650,4.43726051,603.1,602.32,0.28598236]
[1743399757843,0.826221,603.09,602.32,0.28598236]
[1743399758347,3.73919333,603.09,602.32,0.28598236]
[1743399758543,1.38886135,603.08,602.32,0.28598236]
[1743399758743,2.21508235,603.08,602.32,0.28598236]
[1743399759749,2.21508235,603.17,602.32,0.28598236]
[1743399759942,1.12037397,603.17,602.32,0.28598236]
[1743399760645,1.12037397,603.16,602.32,0.28598236]
[1743399761049,1.12037397,603.15,602.32,0.28598236]
[1743399761349,1.12037397,603.18,602.32,0.61803176]
[1743399761550,4.66012115,603.18,602.33,0.28598236]
[1743399761744,6.88260025,603.18,602.33,0.28598236]
[1743399761949,8.67519861,603.17,602.33,0.28598236]
[1743399762148,5.76222628,603.16,602.33,0.28598236]
[1743399762355,2.15088583,603.15,602.33,0.28598236]
[1743399762655,3.74023611,603.15,602.33,0.28598236]
[1743399762855,3.61134045,603.14,602.33,0.28598236]
[1743399763055,1.12037397,603.13,602.33,0.28598236]
[1743399763249,6.88260025,603.13,602.33,0.28598236]
[1743399763452,4.43860423,603.12,602.32,0.3320494]
[1743399763648,2.21612513,603.11,602.33,0.28593801]
[1743399764250,3.3364991,603.18,602.33,0.28593801]
[1743399764555,2.21612513,603.17,602.33,0.28593801]
[1743399764752,1.12037397,603.18,602.33,0.28593801]
[1743399764953,1.12037397,603.17,602.33,0.28593801]
[1743399765357,5.76260303,603.23,602.33,0.28593801]
[1743399765556,5.06389203,603.22,602.33,0.28593801]
[1743399765753,3.61168333,603.21,602.34,0.33203838]
[1743399765953,6.882977,603.21,602.35,0.28593801]
[1743399766156,5.76260303,603.2,602.36,0.33202735]
[1743399766356,5.76260303,603.19,602.37,0.28593801]
[1743399766553,0.82726378,603.18,602.37,0.61795985]
[1743399766757,2.91297233,603.18,602.38,0.28593801]
[1743399766959,7.35191944,603.18,602.38,0.28593801]
[1743399767158,2.21612513,603.17,602.37,0.33202184]
[1743399767359,4.43851008,603.17,602.38,0.285784]
[1743399767556,2.21612513,603.16,602.38,0.285784]
[1743399767758,2.21612513,603.23,602.38,0.285784]
[1743399768057,1.12037397,603.23,602.38,0.285784]
[1743399768253,1.12037397,603.22,602.38,0.285784]
[1743399768854,1.12037397,603.24,602.38,0.285784]
[1743399769557,1.12037397,603.23,602.38,0.285784]
[1743399769963,2.50923532,603.23,602.38,0.285784]
[1743399770164,1.12037397,603.22,602.38,0.285784]
[1743399770863,3.3364991,603.22,602.38,0.285784]
[1743399771263,1.38847312,603.21,602.38,0.285784]
[1743399771459,2.2157369,603.22,602.39,0.33201082]
[1743399771659,0.28870324,603.31,602.4,0.285784]
[1743399771864,0.28870324,603.31,602.41,0.3319998]
[1743399772065,1.40907721,603.31,602.42,0.285784]
[1743399772265,4.9476758,603.31,602.43,0.33198877]
[1743399772466,7.16923715,603.31,602.43,0.33198877]
[1743399772665,5.76015994,603.3,602.44,0.285784]
[1743399772865,5.76015994,603.29,602.44,0.285784]
[1743399773166,2.15012547,603.28,602.44,0.285784]
[1743399773364,3.74023611,603.28,602.44,0.285784]
[1743399773565,3.61003447,603.27,602.44,0.285784]
[1743399773761,1.12037397,603.26,602.44,0.285784]
[1743399773966,5.55767222,603.26,602.44,0.285784]
[1743399774267,0.82726378,603.25,602.44,0.285784]
[1743399774666,3.74023611,603.25,602.44,0.285784]
[1743399774863,1.38847312,603.24,602.44,0.285784]
[1743399775061,2.2157369,603.24,602.44,0.285784]
[1743399775260,0.28869007,603.31,602.44,0.285784]
[1743399775661,1.11595385,603.31,602.44,0.285784]
[1743399775862,6.04702649,603.31,602.44,0.285784]
[1743399776062,2.14944481,603.3,602.44,0.285784]
[1743399776367,2.14944481,603.3,602.45,0.28555655]
[1743399776563,5.06241714,603.3,602.46,0.28555655]
[1743399776762,3.60889161,603.29,602.44,0.28555655]
[1743399776962,1.12037397,603.28,602.44,0.28555655]
[1743399777165,6.87871039,603.28,602.44,0.28555655]
[1743399777362,4.43615539,603.27,602.44,0.28555655]
[1743399777567,4.43615539,603.26,602.44,0.28555655]
[1743399777768,2.2157369,603.25,602.44,0.28555655]
[1743399778568,0.28869246,603.31,602.44,0.28555655]
[1743399779465,1.67716558,603.31,602.44,0.28555655]
[1743399779669,3.82629251,603.31,602.44,0.28555655]
[1743399779863,2.14805439,603.3,602.43,0.33198877]
[1743399780070,3.73914709,603.3,602.44,0.28559523]
[1743399780266,3.60836123,603.29,602.44,0.28559523]
[1743399780470,5.75641562,603.29,602.44,0.28559523]
[1743399780765,2.14805439,603.28,602.44,0.28559523]
[1743399780968,3.73914709,603.28,602.44,0.28559523]
[1743399781170,3.60836123,603.27,602.44,0.28559523]
[1743399781370,5.75641562,603.27,602.44,0.28559523]
[1743399781571,0.82617476,603.26,602.44,0.28559523]
[1743399781771,2.91297233,603.26,602.44,0.28559523]
[1743399782071,8.6694247,603.26,602.44,0.28559523]
[1743399782267,4.43453599,603.25,602.44,0.28559523]
[1743399782467,0.82617476,603.24,602.44,0.28559523]
[1743399782870,3.73914709,603.24,602.44,0.28559523]
[1743399783074,1.38847312,603.23,602.44,0.28559523]
[1743399783273,2.21464788,603.23,602.44,0.28559523]
[1743399783677,2.21464788,603.41,602.44,0.28559523]
[1743399783976,1.42515172,603.4,602.44,0.28559523]
[1743399784179,0.30477775,603.39,602.44,0.28559523]
[1743399784375,2.25132648,603.39,602.44,0.28559523]
[1743399784671,0.30477775,603.38,602.44,0.28559523]
[1743399784876,1.12037397,603.38,602.43,0.62066208]
[1743399785176,0.30477791,603.37,602.44,0.28563496]
[1743399785475,1.12037397,603.36,602.44,0.28563496]
[1743399785677,0.30477791,603.35,602.44,0.28563496]
[1743399785870,1.42515188,603.35,602.44,0.28563496]
[1743399786073,0.30477791,603.34,602.44,0.28563496]
[1743399786275,3.50642953,603.34,602.44,0.28563496]
[1743399786474,0.30477791,603.33,602.44,0.28563496]
[1743399786671,6.06108997,603.33,602.44,0.28563496]
[1743399786980,5.75478359,603.32,602.44,0.28563496]
[1743399787172,2.14782433,603.31,602.44,0.28563496]
[1743399787374,0.82605111,603.31,602.44,0.28563496]
[1743399787580,3.73902344,603.31,602.44,0.28563496]
[1743399787779,3.60681815,603.3,602.44,0.28563496]
[1743399788079,5.75455104,603.3,602.44,0.28563496]
[1743399788281,2.14773289,603.29,602.44,0.28563496]
[1743399788475,0.82605111,603.29,602.44,0.28563496]
[1743399788674,3.73902344,603.29,602.44,0.28563496]
[1743399788880,5.75455861,603.28,602.44,0.28563496]
[1743399789074,2.14774025,603.27,602.44,0.28563496]
[1743399789280,0.82605394,603.27,602.44,0.28563496]
[1743399789480,3.73902627,603.27,602.44,0.28563496]
[1743399789681,3.60681836,603.26,602.44,0.28563496]
[1743399789882,0.82605394,603.25,602.44,0.28563496]
[1743399790180,1.94642791,603.25,602.44,0.28563496]
[1743399790374,7.34584463,603.25,602.44,0.28563496]
[1743399790577,2.21329177,603.24,602.44,0.28563496]
[1743399791478,0.28869127,603.31,602.44,0.28563496]